[Event "Early-Titled-Tuesday-Blitz-March-05-2024"]
[Site "Chess.com"]
[Date "2024.03.05"]
[Round "10"]
[White "Rodalquilar"]
[Black "Kunalm64"]
[Result "1-0"]
[WhiteElo "2799"]
[BlackElo "2623"]
[TimeControl "180+1"]
[EndTime "9:58:49 PST"]
[Termination "Rodalquilar won by resignation"]

1. d4 {[%clk 0:03:00.9]} 1... Nf6 {[%clk 0:02:58.2]} 2. Nf3 {[%clk 0:03:01.3]}
2... e6 {[%clk 0:02:58.3]} 3. Bf4 {[%clk 0:03:01.8]} 3... b6 {[%clk 0:02:57.6]}
4. e3 {[%clk 0:03:01.9]} 4... Bb7 {[%clk 0:02:57.9]} 5. Nbd2 {[%clk 0:03:02.3]}
5... d6 {[%clk 0:02:56.5]} 6. h3 {[%clk 0:03:00.9]} 6... Nbd7 {[%clk 0:02:56.8]}
7. c3 {[%clk 0:02:58.9]} 7... g6 {[%clk 0:02:56.2]} 8. Be2 {[%clk 0:02:57.4]}
8... Bg7 {[%clk 0:02:56.5]} 9. O-O {[%clk 0:02:57.9]} 9... O-O {[%clk 0:02:57]}
10. Bh2 {[%clk 0:02:58.4]} 10... Qe7 {[%clk 0:02:57.2]} 11. a4 {[%clk
0:02:58.9]} 11... a5 {[%clk 0:02:56.6]} 12. Bd3 {[%clk 0:02:46]} 12... e5 {[%clk
0:02:55.8]} 13. e4 {[%clk 0:02:46]} 13... Rfe8 {[%clk 0:02:30.7]} 14. Re1 {[%clk
0:02:45.8]} 14... Nh5 {[%clk 0:02:27.7]} 15. Bb5 {[%clk 0:02:44.3]} 15... Nf4
{[%clk 0:02:14.3]} 16. Bxf4 {[%clk 0:02:26.7]} 16... exf4 {[%clk 0:02:13.9]} 17.
Qb3 {[%clk 0:02:26.1]} 17... Rf8 {[%clk 0:01:55.3]} 18. Bc4 {[%clk 0:02:25.3]}
18... Kh8 {[%clk 0:01:52.2]} 19. Bd5 {[%clk 0:02:25.4]} 19... c6 {[%clk
0:01:44.3]} 20. Bc4 {[%clk 0:02:25.7]} 20... g5 {[%clk 0:01:44.7]} 21. Qd1
{[%clk 0:02:11.9]} 21... Qf6 {[%clk 0:01:11]} 22. Nh2 {[%clk 0:02:10.7]} 22...
Qg6 {[%clk 0:01:09]} 23. Qg4 {[%clk 0:02:05]} 23... Nf6 {[%clk 0:01:07.4]} 24.
Qf5 {[%clk 0:02:04.5]} 24... d5 {[%clk 0:00:44.7]} 25. Qxg6 {[%clk 0:02:02.5]}
25... hxg6 {[%clk 0:00:44.5]} 26. exd5 {[%clk 0:02:00.4]} 26... cxd5 {[%clk
0:00:43.3]} 27. Bd3 {[%clk 0:02:00.5]} 27... Rfe8 {[%clk 0:00:40.3]} 28. Nhf3
{[%clk 0:01:59.5]} 28... Nh7 {[%clk 0:00:35.7]} 29. Ne5 {[%clk 0:01:59]} 29...
Bxe5 {[%clk 0:00:33.1]} 30. dxe5 {[%clk 0:01:58.6]} 30... Nf8 {[%clk 0:00:27]}
31. Nf3 {[%clk 0:01:50.2]} 31... Ne6 {[%clk 0:00:26.7]} 32. Bb5 {[%clk
0:01:50.6]} 32... Red8 {[%clk 0:00:26.3]} 33. Rad1 {[%clk 0:01:48.9]} 33... Kg7
{[%clk 0:00:23.5]} 34. Nd4 {[%clk 0:01:44.8]} 34... Nxd4 {[%clk 0:00:20]} 35.
Rxd4 {[%clk 0:01:45.7]} 35... Ba6 {[%clk 0:00:17.3]} 36. Bxa6 {[%clk 0:01:44.1]}
36... Rxa6 {[%clk 0:00:17.3]} 37. Red1 {[%clk 0:01:44.6]} 37... Kf8 {[%clk
0:00:16.5]} 38. Rxd5 {[%clk 0:01:44.9]} 38... Rxd5 {[%clk 0:00:16.8]} 39. Rxd5
{[%clk 0:01:45.8]} 39... Ra7 {[%clk 0:00:17.4]} 40. Kf1 {[%clk 0:01:26.4]} 40...
Rc7 {[%clk 0:00:17.5]} 41. Rb5 {[%clk 0:00:38.1]} 41... Rc6 {[%clk 0:00:17.4]}
42. Ke2 {[%clk 0:00:37.9]} 42... Ke7 {[%clk 0:00:17.6]} 43. Kf3 {[%clk
0:00:37.4]} 43... Ke6 {[%clk 0:00:17.8]} 44. Kg4 {[%clk 0:00:37.7]} 44... f5+
{[%clk 0:00:16.6]} 45. exf6 {[%clk 0:00:37.7]} 45... Kxf6 {[%clk 0:00:16.4]} 46.
Rxg5 {[%clk 0:00:35.4]} 46... f3 {[%clk 0:00:10.6]} 47. gxf3 {[%clk 0:00:31]}
47... Rc4+ {[%clk 0:00:10.5]} 48. f4 {[%clk 0:00:31.5]} 48... Rxa4 {[%clk
0:00:10.6]} 49. Rb5 {[%clk 0:00:31.7]} 49... Ra1 {[%clk 0:00:06.9]} 50. Rxb6+
{[%clk 0:00:31.9]} 50... Kf7 {[%clk 0:00:07.1]} 51. b3 {[%clk 0:00:27]} 51...
Ra3 {[%clk 0:00:05.7]} 52. c4 {[%clk 0:00:25.5]} 52... a4 {[%clk 0:00:05.6]} 53.
bxa4 {[%clk 0:00:21.9]} 53... Rxa4 {[%clk 0:00:06]} 54. c5 {[%clk 0:00:22.4]}
54... Rc4 {[%clk 0:00:06]} 55. c6 {[%clk 0:00:22.2]} 55... Kg7 {[%clk 0:00:06]}
56. Kf3 {[%clk 0:00:16.4]} 56... Rc3+ {[%clk 0:00:05.5]} 57. Ke4 {[%clk
0:00:16.8]} 57... Rxh3 {[%clk 0:00:05.8]} 58. Kd4 {[%clk 0:00:16.5]} 58... Rh1
{[%clk 0:00:05.8]} 59. Rb5 {[%clk 0:00:14.9]} 59... Rd1+ {[%clk 0:00:05.4]} 60.
Ke5 {[%clk 0:00:15.1]} 60... Rb1 {[%clk 0:00:04.8]} 61. Rxb1 {[%clk 0:00:14.4]}
1-0

[Event "Early-Titled-Tuesday-Blitz-March-05-2024"]
[Site "Chess.com"]
[Date "2024.03.05"]
[Round "10"]
[White "McCarthyStone"]
[Black "ChessFanNM"]
[Result "0-1"]
[WhiteElo "2359"]
[BlackElo "2266"]
[TimeControl "180+1"]
[EndTime "9:58:51 PST"]
[Termination "ChessFanNM won by checkmate"]

1. b3 {[%clk 0:03:00.9]} 1... d5 {[%clk 0:01:38.4]} 2. Bb2 {[%clk 0:03:01.8]}
2... c5 {[%clk 0:01:35.3]} 3. Nf3 {[%clk 0:03:00.8]} 3... Nc6 {[%clk 0:01:32.4]}
4. e3 {[%clk 0:03:01.1]} 4... a6 {[%clk 0:01:28.1]} 5. d4 {[%clk 0:02:59.3]}
5... Nf6 {[%clk 0:01:18.1]} 6. Bd3 {[%clk 0:02:55.9]} 6... Bg4 {[%clk
0:01:17.3]} 7. h3 {[%clk 0:02:56.1]} 7... Bh5 {[%clk 0:01:16.9]} 8. a3 {[%clk
0:02:54.1]} 8... e6 {[%clk 0:01:15.8]} 9. O-O {[%clk 0:02:53.9]} 9... b5 {[%clk
0:01:10.8]} 10. dxc5 {[%clk 0:02:51.5]} 10... Bxc5 {[%clk 0:01:08.3]} 11. Nbd2
{[%clk 0:02:50.8]} 11... O-O {[%clk 0:01:08]} 12. Qe1 {[%clk 0:02:43]} 12... Qe7
{[%clk 0:00:49.8]} 13. Ne5 {[%clk 0:02:33.1]} 13... Nxe5 {[%clk 0:00:47.5]} 14.
Bxe5 {[%clk 0:02:34]} 14... Bxa3 {[%clk 0:00:46.6]} 15. Bxf6 {[%clk 0:02:34.4]}
15... gxf6 {[%clk 0:00:46.8]} 16. e4 {[%clk 0:02:32.7]} 16... Bg6 {[%clk
0:00:38.9]} 17. Qe3 {[%clk 0:02:19.9]} 17... Bc5 {[%clk 0:00:36.4]} 18. Qf3
{[%clk 0:02:14.6]} 18... Bd4 {[%clk 0:00:32.5]} 19. Rad1 {[%clk 0:02:14]} 19...
dxe4 {[%clk 0:00:23.5]} 20. Nxe4 {[%clk 0:02:14.9]} 20... f5 {[%clk 0:00:20.7]}
21. Ng3 {[%clk 0:02:08.2]} 21... Bg7 {[%clk 0:00:20.8]} 22. Rfe1 {[%clk
0:02:03.5]} 22... Rac8 {[%clk 0:00:20.2]} 23. Bxf5 {[%clk 0:01:59.4]} 23... Qc7
{[%clk 0:00:17.9]} 24. Bxg6 {[%clk 0:01:45.2]} 24... hxg6 {[%clk 0:00:18.8]} 25.
Re2 {[%clk 0:01:45.4]} 25... Qc3 {[%clk 0:00:18.8]} 26. Qb7 {[%clk 0:01:39.9]}
26... Qc6 {[%clk 0:00:17.5]} 27. Rd7 {[%clk 0:01:37.4]} 27... Qxb7 {[%clk
0:00:17.2]} 28. Rxb7 {[%clk 0:01:38.3]} 28... Rfd8 {[%clk 0:00:17.2]} 29. Ra7
{[%clk 0:01:31.1]} 29... Rd1+ {[%clk 0:00:16.9]} 30. Kh2 {[%clk 0:01:31.2]}
30... Ra1 {[%clk 0:00:17.4]} 31. Ne4 {[%clk 0:01:28.6]} 31... Ra2 {[%clk
0:00:16]} 32. Nd6 {[%clk 0:01:25.2]} 32... Rcxc2 {[%clk 0:00:14.8]} 33. Rxc2
{[%clk 0:01:20]} 33... Rxc2 {[%clk 0:00:15.7]} 34. Nxf7 {[%clk 0:01:18.8]} 34...
Rxf2 {[%clk 0:00:15.6]} 35. Ng5 {[%clk 0:01:18.1]} 35... Rb2 {[%clk 0:00:13.5]}
36. Nxe6 {[%clk 0:01:12.8]} 36... Be5+ {[%clk 0:00:13]} 37. Kg1 {[%clk 0:01:13]}
37... Rxb3 {[%clk 0:00:11.6]} 38. Rxa6 {[%clk 0:01:10.6]} 38... Bg3 {[%clk
0:00:10]} 39. Ra8+ {[%clk 0:00:52]} 39... Kf7 {[%clk 0:00:09.1]} 40. Ng5+ {[%clk
0:00:52.6]} 40... Kg7 {[%clk 0:00:08.4]} 41. Kf1 {[%clk 0:00:45.4]} 41... Re3
{[%clk 0:00:07.5]} 42. Nf3 {[%clk 0:00:41.1]} 42... b4 {[%clk 0:00:07.2]} 43.
Rb8 {[%clk 0:00:29.8]} 43... b3 {[%clk 0:00:07.1]} 44. Rb7+ {[%clk 0:00:22.8]}
44... Kf8 {[%clk 0:00:06.9]} 45. h4 {[%clk 0:00:18.6]} 45... Ke8 {[%clk
0:00:07]} 46. Kg1 {[%clk 0:00:17.3]} 46... Kd8 {[%clk 0:00:07]} 47. Kf1 {[%clk
0:00:17.5]} 47... Kc8 {[%clk 0:00:07.1]} 48. Rb6 {[%clk 0:00:17.5]} 48... Kc7
{[%clk 0:00:07.5]} 49. Rb4 {[%clk 0:00:14.6]} 49... Kc6 {[%clk 0:00:07]} 50. Rb8
{[%clk 0:00:14.1]} 50... Kc7 {[%clk 0:00:07.1]} 51. Rb4 {[%clk 0:00:14]} 51...
Kc6 {[%clk 0:00:07.4]} 52. Rb8 {[%clk 0:00:14.3]} 52... Kc5 {[%clk 0:00:07.8]}
53. Rc8+ {[%clk 0:00:12.5]} 53... Kb6 {[%clk 0:00:07.4]} 54. Rc1 {[%clk
0:00:10.7]} 54... Kb5 {[%clk 0:00:07.3]} 55. Nd2 {[%clk 0:00:10.9]} 55... Kb4
{[%clk 0:00:05.9]} 56. Rc4+ {[%clk 0:00:10.6]} 56... Ka3 {[%clk 0:00:05.9]} 57.
Nf3 {[%clk 0:00:07.6]} 57... b2 {[%clk 0:00:05.1]} 58. Nd2 {[%clk 0:00:04.3]}
58... Re1# {[%clk 0:00:04.4]} 0-1

[Event "Early-Titled-Tuesday-Blitz-March-05-2024"]
[Site "Chess.com"]
[Date "2024.03.05"]
[Round "10"]
[White "vovachesss"]
[Black "awesomevishesh"]
[Result "1/2-1/2"]
[WhiteElo "2795"]
[BlackElo "2655"]
[TimeControl "180+1"]
[EndTime "9:58:57 PST"]
[Termination "Game drawn by agreement"]

1. e4 {[%clk 0:02:58.5]} 1... c5 {[%clk 0:02:55.6]} 2. c3 {[%clk 0:02:57.5]}
2... Nf6 {[%clk 0:02:53]} 3. e5 {[%clk 0:02:57.8]} 3... Nd5 {[%clk 0:02:52.7]}
4. Nf3 {[%clk 0:02:58.7]} 4... d6 {[%clk 0:02:51.6]} 5. Bb5+ {[%clk 0:02:58.2]}
5... Bd7 {[%clk 0:02:48.1]} 6. Bc4 {[%clk 0:02:58.5]} 6... e6 {[%clk 0:02:21.9]}
7. d4 {[%clk 0:02:57.6]} 7... cxd4 {[%clk 0:02:21.4]} 8. cxd4 {[%clk 0:02:55.1]}
8... Bc6 {[%clk 0:02:14.3]} 9. O-O {[%clk 0:02:54.1]} 9... Nd7 {[%clk
0:02:13.9]} 10. Qe2 {[%clk 0:02:52.1]} 10... dxe5 {[%clk 0:02:06.5]} 11. dxe5
{[%clk 0:02:50]} 11... Be7 {[%clk 0:02:00.3]} 12. Nd4 {[%clk 0:02:44.5]} 12...
Qc7 {[%clk 0:01:30.9]} 13. Nxc6 {[%clk 0:02:42.9]} 13... bxc6 {[%clk 0:01:28]}
14. Re1 {[%clk 0:02:40.8]} 14... O-O {[%clk 0:01:22.5]} 15. Nd2 {[%clk
0:02:41.1]} 15... a5 {[%clk 0:01:15.1]} 16. Nf3 {[%clk 0:02:40.3]} 16... a4
{[%clk 0:01:09.5]} 17. Bd3 {[%clk 0:02:26.3]} 17... g6 {[%clk 0:01:02]} 18. Bh6
{[%clk 0:02:25]} 18... Rfe8 {[%clk 0:01:01.6]} 19. Rac1 {[%clk 0:02:23.9]} 19...
Qb6 {[%clk 0:00:54.7]} 20. a3 {[%clk 0:02:05.5]} 20... Nc5 {[%clk 0:00:46.8]}
21. Bb1 {[%clk 0:01:54.6]} 21... Rab8 {[%clk 0:00:46.4]} 22. Rc2 {[%clk
0:01:55]} 22... Nb3 {[%clk 0:00:43.7]} 23. h4 {[%clk 0:01:52.5]} 23... c5 {[%clk
0:00:40.6]} 24. h5 {[%clk 0:00:56.7]} 24... Na1 {[%clk 0:00:25]} 25. Rd2 {[%clk
0:00:39.6]} 25... Nb3 {[%clk 0:00:24.8]} 26. Rdd1 {[%clk 0:00:37.9]} 26... Nd4
{[%clk 0:00:22.6]} 27. Nxd4 {[%clk 0:00:38]} 27... cxd4 {[%clk 0:00:22.7]} 28.
Rd2 {[%clk 0:00:38.9]} 28... Bf8 {[%clk 0:00:19.1]} 29. Bxf8 {[%clk 0:00:26.3]}
29... Kxf8 {[%clk 0:00:19.2]} 30. Qf3 {[%clk 0:00:22.9]} 30... Kg7 {[%clk
0:00:15.5]} 31. Re4 {[%clk 0:00:17.1]} 31... Qc5 {[%clk 0:00:13.7]} 32. h6+
{[%clk 0:00:09.7]} 32... Kf8 {[%clk 0:00:11.5]} 33. Rexd4 {[%clk 0:00:07.3]}
33... Qc1+ {[%clk 0:00:11.6]} 34. Rd1 {[%clk 0:00:08]} 34... Qxh6 {[%clk
0:00:11.2]} 35. Be4 {[%clk 0:00:06.5]} 35... Rxb2 {[%clk 0:00:10.9]} 36. Bxd5
{[%clk 0:00:07]} 36... exd5 {[%clk 0:00:11.4]} 37. Rxd5 {[%clk 0:00:07.9]} 37...
Rb3 {[%clk 0:00:06]} 38. Qf6 {[%clk 0:00:06]} 38... Qg7 {[%clk 0:00:05.6]} 39.
Qd6+ {[%clk 0:00:06.2]} 39... Kg8 {[%clk 0:00:06.1]} 40. Qc6 {[%clk 0:00:06.4]}
40... Qf8 {[%clk 0:00:05.9]} 41. Qxa4 {[%clk 0:00:06.1]} 41... Rxa3 {[%clk
0:00:06.1]} 42. Qf4 {[%clk 0:00:04.9]} 42... Ra6 {[%clk 0:00:05.6]} 43. Rd7
{[%clk 0:00:04.6]} 43... Rae6 {[%clk 0:00:05.5]} 44. R1d5 {[%clk 0:00:05.1]}
44... R6e7 {[%clk 0:00:05.6]} 45. g3 {[%clk 0:00:04.8]} 45... Rxd7 {[%clk
0:00:05.8]} 46. Rxd7 {[%clk 0:00:05.7]} 46... Re7 {[%clk 0:00:06]} 47. Rd6
{[%clk 0:00:05.2]} 47... Re8 {[%clk 0:00:05.5]} 48. Kh2 {[%clk 0:00:04.1]} 48...
Qe7 {[%clk 0:00:05.8]} 49. Rf6 {[%clk 0:00:01.9]} 49... Qxe5 {[%clk 0:00:05.6]}
50. Rxf7 {[%clk 0:00:02.6]} 50... Qxf4 {[%clk 0:00:06]} 51. Rxf4 {[%clk
0:00:03.5]} 51... Kg7 {[%clk 0:00:06.8]} 52. Kg2 {[%clk 0:00:03.8]} 52... Re7
{[%clk 0:00:07]} 53. Rd4 {[%clk 0:00:04.4]} 53... h5 {[%clk 0:00:07.4]} 54. Rd5
{[%clk 0:00:04.8]} 54... Rf7 {[%clk 0:00:07.6]} 55. Rd6 {[%clk 0:00:05.1]} 55...
Re7 {[%clk 0:00:07.9]} 56. Rd5 {[%clk 0:00:04.6]} 1/2-1/2

[Event "Early-Titled-Tuesday-Blitz-March-05-2024"]
[Site "Chess.com"]
[Date "2024.03.05"]
[Round "10"]
[White "jk13"]
[Black "carlocapau"]
[Result "0-1"]
[WhiteElo "2673"]
[BlackElo "2488"]
[TimeControl "180+1"]
[EndTime "9:58:57 PST"]
[Termination "carlocapau won by resignation"]

1. e4 {[%clk 0:02:59.1]} 1... c5 {[%clk 0:02:59.6]} 2. c3 {[%clk 0:02:59.4]}
2... g6 {[%clk 0:02:59.2]} 3. d4 {[%clk 0:02:59.3]} 3... cxd4 {[%clk 0:02:59.6]}
4. cxd4 {[%clk 0:03:00.2]} 4... d5 {[%clk 0:02:59.7]} 5. e5 {[%clk 0:03:00.9]}
5... Nc6 {[%clk 0:02:59.8]} 6. Nc3 {[%clk 0:03:01.5]} 6... Bg7 {[%clk
0:02:59.4]} 7. h4 {[%clk 0:03:02]} 7... f6 {[%clk 0:02:58.8]} 8. f4 {[%clk
0:02:56.5]} 8... fxe5 {[%clk 0:02:55.6]} 9. fxe5 {[%clk 0:02:56.6]} 9... Nh6
{[%clk 0:02:47.8]} 10. h5 {[%clk 0:02:56.8]} 10... Bg4 {[%clk 0:02:42.7]} 11.
Be2 {[%clk 0:02:55]} 11... Bxe2 {[%clk 0:02:42.8]} 12. Ngxe2 {[%clk 0:02:54.9]}
12... e6 {[%clk 0:02:33.6]} 13. Qd3 {[%clk 0:02:50.7]} 13... Nf5 {[%clk
0:02:24.3]} 14. g4 {[%clk 0:02:36.5]} 14... Nfe7 {[%clk 0:02:23.3]} 15. h6
{[%clk 0:02:30.7]} 15... Bf8 {[%clk 0:02:21.4]} 16. Bg5 {[%clk 0:02:31.4]} 16...
Qd7 {[%clk 0:02:17.5]} 17. O-O-O {[%clk 0:02:14.7]} 17... O-O-O {[%clk
0:02:16.2]} 18. Nb5 {[%clk 0:02:09.7]} 18... Kb8 {[%clk 0:02:11.5]} 19. Nd6
{[%clk 0:02:09.7]} 19... Nb4 {[%clk 0:02:03.3]} 20. Qb3 {[%clk 0:02:08.7]} 20...
Nbc6 {[%clk 0:01:48.8]} 21. Kb1 {[%clk 0:02:03.8]} 21... Na5 {[%clk 0:01:48.1]}
22. Qd3 {[%clk 0:01:57.2]} 22... Nc4 {[%clk 0:01:47.1]} 23. Nf7 {[%clk
0:01:50.6]} 23... Rg8 {[%clk 0:01:37.9]} 24. Nxd8 {[%clk 0:01:49.5]} 24... Qxd8
{[%clk 0:01:38.8]} 25. Rhf1 {[%clk 0:01:45.3]} 25... Qb6 {[%clk 0:01:38.6]} 26.
b3 {[%clk 0:01:45]} 26... Nc6 {[%clk 0:01:37.9]} 27. Ka1 {[%clk 0:01:38.1]}
27... Ba3 {[%clk 0:01:33]} 28. Bc1 {[%clk 0:01:03.5]} 28... Nb4 {[%clk
0:01:01.2]} 29. Qc3 {[%clk 0:00:56.5]} 29... Rc8 {[%clk 0:00:59.7]} 30. bxc4
{[%clk 0:00:33.7]} 30... Rxc4 {[%clk 0:00:59.4]} 31. Qb3 {[%clk 0:00:32.9]}
31... Nc2+ {[%clk 0:00:55.3]} 32. Kb1 {[%clk 0:00:32.4]} 32... Rb4 {[%clk
0:00:55.3]} 33. Kxc2 {[%clk 0:00:24.1]} 33... Rxb3 {[%clk 0:00:55.2]} 34. axb3
{[%clk 0:00:25]} 34... Qc6+ {[%clk 0:00:52.9]} 35. Nc3 {[%clk 0:00:23.2]} 35...
Bb4 {[%clk 0:00:51.5]} 36. Bd2 {[%clk 0:00:21.5]} 36... a6 {[%clk 0:00:46.2]}
37. Kd3 {[%clk 0:00:20.2]} 37... Bxc3 {[%clk 0:00:43]} 38. Bxc3 {[%clk
0:00:20.3]} 38... Qb5+ {[%clk 0:00:43.6]} 39. Kc2 {[%clk 0:00:19.8]} 39... Qe2+
{[%clk 0:00:43.7]} 40. Kb1 {[%clk 0:00:18.8]} 40... Qxg4 {[%clk 0:00:43.1]} 41.
Bb2 {[%clk 0:00:17.6]} 41... g5 {[%clk 0:00:42.9]} 42. Rf8+ {[%clk 0:00:15.7]}
42... Ka7 {[%clk 0:00:41.7]} 43. Rc1 {[%clk 0:00:16.3]} 43... Qe4+ {[%clk
0:00:40.4]} 44. Ka1 {[%clk 0:00:16.7]} 44... g4 {[%clk 0:00:36.6]} 45. Rg8
{[%clk 0:00:12.2]} 45... Qf3 {[%clk 0:00:35.2]} 46. Rc7 {[%clk 0:00:10.2]} 46...
Qxb3 {[%clk 0:00:32.3]} 47. Rgg7 {[%clk 0:00:01.6]} 47... Qd1+ {[%clk
0:00:30.1]} 48. Ka2 {[%clk 0:00:01.6]} 48... Qa4+ {[%clk 0:00:26.1]} 49. Kb1
{[%clk 0:00:02.2]} 49... Qd1+ {[%clk 0:00:23.9]} 50. Rc1 {[%clk 0:00:01.7]}
50... Qd3+ {[%clk 0:00:23]} 51. Ka1 {[%clk 0:00:01.9]} 51... g3 {[%clk
0:00:21.7]} 52. Rcc7 {[%clk 0:00:02.6]} 52... Qd1+ {[%clk 0:00:20.7]} 53. Ka2
{[%clk 0:00:03.4]} 53... Qa4+ {[%clk 0:00:20.8]} 54. Ba3 {[%clk 0:00:03.3]}
54... Qb5 {[%clk 0:00:20.9]} 55. Rxg3 {[%clk 0:00:02.9]} 55... Qe2+ {[%clk
0:00:19.6]} 56. Bb2 {[%clk 0:00:03.3]} 56... Qb5 {[%clk 0:00:19.5]} 57. Rb3
{[%clk 0:00:03.6]} 57... Qa4+ {[%clk 0:00:19.3]} 58. Ba3 {[%clk 0:00:03.5]}
58... Qxd4 {[%clk 0:00:18.6]} 59. Rbxb7+ {[%clk 0:00:04.4]} 59... Ka8 {[%clk
0:00:18.7]} 60. Ra7+ {[%clk 0:00:04.9]} 60... Kb8 {[%clk 0:00:19]} 61. Rab7+
{[%clk 0:00:05.4]} 61... Ka8 {[%clk 0:00:19.4]} 62. Rb3 {[%clk 0:00:04.8]} 62...
Qd2+ {[%clk 0:00:19.3]} 63. Rb2 {[%clk 0:00:05]} 63... Qd4 {[%clk 0:00:19.6]}
64. Rxh7 {[%clk 0:00:05.1]} 64... Qc4+ {[%clk 0:00:20.1]} 65. Ka1 {[%clk
0:00:05.5]} 65... a5 {[%clk 0:00:20.5]} 66. Rf2 {[%clk 0:00:05]} 66... Qc3+
{[%clk 0:00:20.3]} 67. Ka2 {[%clk 0:00:04.9]} 67... Qc4+ {[%clk 0:00:20.2]} 68.
Kb2 {[%clk 0:00:05.1]} 68... Qd4+ {[%clk 0:00:20.7]} 69. Kb3 {[%clk 0:00:05.7]}
69... Qxf2 {[%clk 0:00:21.6]} 70. Ka4 {[%clk 0:00:06.2]} 70... d4 {[%clk
0:00:20.8]} 71. Rg7 {[%clk 0:00:06.1]} 71... d3 {[%clk 0:00:20.7]} 72. h7 {[%clk
0:00:06.3]} 72... Qf4+ {[%clk 0:00:20.8]} 73. Kb5 {[%clk 0:00:06.2]} 73... Qxe5+
{[%clk 0:00:21]} 74. Kc6 {[%clk 0:00:06]} 74... Qxg7 {[%clk 0:00:21.9]} 75. Bd6
{[%clk 0:00:05.5]} 75... Qxh7 {[%clk 0:00:22.2]} 0-1

[Event "Early-Titled-Tuesday-Blitz-March-05-2024"]
[Site "Chess.com"]
[Date "2024.03.05"]
[Round "10"]
[White "Harry_Rakkel"]
[Black "ilqar_74"]
[Result "1/2-1/2"]
[WhiteElo "2693"]
[BlackElo "2827"]
[TimeControl "180+1"]
[EndTime "9:59:01 PST"]
[Termination "Game drawn by stalemate"]

1. e4 {[%clk 0:03:00.9]} 1... c5 {[%clk 0:02:59.2]} 2. Nf3 {[%clk 0:03:00.5]}
2... d6 {[%clk 0:02:55.7]} 3. d4 {[%clk 0:03:00.2]} 3... cxd4 {[%clk 0:02:50.9]}
4. Nxd4 {[%clk 0:03:01.1]} 4... Nf6 {[%clk 0:02:51.3]} 5. Nc3 {[%clk 0:03:00.8]}
5... e5 {[%clk 0:02:45.7]} 6. Bb5+ {[%clk 0:02:57]} 6... Bd7 {[%clk 0:02:42.8]}
7. Bxd7+ {[%clk 0:02:43.2]} 7... Qxd7 {[%clk 0:02:43.7]} 8. Nf5 {[%clk
0:02:28.2]} 8... Nxe4 {[%clk 0:02:43.2]} 9. Nxg7+ {[%clk 0:02:23.8]} 9... Bxg7
{[%clk 0:02:38.5]} 10. Nxe4 {[%clk 0:02:23.6]} 10... d5 {[%clk 0:02:39.2]} 11.
Ng3 {[%clk 0:02:23]} 11... O-O {[%clk 0:02:38.5]} 12. O-O {[%clk 0:02:17.9]}
12... f5 {[%clk 0:02:37.7]} 13. f4 {[%clk 0:02:12.7]} 13... e4 {[%clk
0:02:31.7]} 14. c3 {[%clk 0:02:07.1]} 14... Nc6 {[%clk 0:02:28.8]} 15. Be3
{[%clk 0:02:05]} 15... d4 {[%clk 0:02:27.5]} 16. cxd4 {[%clk 0:02:04.1]} 16...
Bxd4 {[%clk 0:02:26.6]} 17. Qe2 {[%clk 0:01:54.2]} 17... Bxe3+ {[%clk
0:02:25.8]} 18. Qxe3 {[%clk 0:01:54.2]} 18... Qd4 {[%clk 0:02:26.5]} 19. Qxd4
{[%clk 0:01:47.2]} 19... Nxd4 {[%clk 0:02:27.4]} 20. Rac1 {[%clk 0:01:35.4]}
20... Rad8 {[%clk 0:02:17.9]} 21. Kf2 {[%clk 0:01:27.9]} 21... Ne6 {[%clk
0:02:16.9]} 22. Rc2 {[%clk 0:00:48.1]} 22... Nxf4 {[%clk 0:02:15.3]} 23. Kg1
{[%clk 0:00:48.2]} 23... Nd5 {[%clk 0:00:56.8]} 24. Nxf5 {[%clk 0:00:46.6]}
24... Kh8 {[%clk 0:00:49.8]} 25. Re2 {[%clk 0:00:43.8]} 25... Rde8 {[%clk
0:00:44.7]} 26. g3 {[%clk 0:00:28.3]} 26... Re6 {[%clk 0:00:34.1]} 27. Nd4
{[%clk 0:00:22.7]} 27... Rxf1+ {[%clk 0:00:33.7]} 28. Kxf1 {[%clk 0:00:23.6]}
28... Re5 {[%clk 0:00:33.1]} 29. Kg2 {[%clk 0:00:22.2]} 29... Kg7 {[%clk
0:00:26]} 30. Nc2 {[%clk 0:00:20.8]} 30... Nf6 {[%clk 0:00:25.6]} 31. Ne3 {[%clk
0:00:20.1]} 31... Ra5 {[%clk 0:00:25.7]} 32. b3 {[%clk 0:00:19.2]} 32... Rc5
{[%clk 0:00:24]} 33. Rd2 {[%clk 0:00:18.4]} 33... Rc3 {[%clk 0:00:20.6]} 34. Kf2
{[%clk 0:00:18.4]} 34... h5 {[%clk 0:00:20.3]} 35. Rd6 {[%clk 0:00:14.4]} 35...
Ng4+ {[%clk 0:00:18.1]} 36. Nxg4 {[%clk 0:00:13.6]} 36... hxg4 {[%clk 0:00:19]}
37. Re6 {[%clk 0:00:11.9]} 37... Rc2+ {[%clk 0:00:16.2]} 38. Kg1 {[%clk
0:00:11.7]} 38... Rxa2 {[%clk 0:00:15.4]} 39. Rxe4 {[%clk 0:00:11.3]} 39... a5
{[%clk 0:00:13]} 40. Rxg4+ {[%clk 0:00:11]} 40... Kf6 {[%clk 0:00:13.7]} 41. Ra4
{[%clk 0:00:10.6]} 41... Rb2 {[%clk 0:00:09]} 42. Rxa5 {[%clk 0:00:10.3]} 42...
Rxb3 {[%clk 0:00:09.7]} 43. Kg2 {[%clk 0:00:10.6]} 43... Rb2+ {[%clk 0:00:10.2]}
44. Kh3 {[%clk 0:00:10.3]} 44... b5 {[%clk 0:00:10.9]} 45. g4 {[%clk 0:00:09.9]}
45... b4 {[%clk 0:00:11.6]} 46. Kg3 {[%clk 0:00:10.1]} 46... b3 {[%clk
0:00:11.2]} 47. Rb5 {[%clk 0:00:10.4]} 47... Rb1 {[%clk 0:00:11.6]} 48. Kh4
{[%clk 0:00:10]} 48... b2 {[%clk 0:00:11.5]} 49. Kh5 {[%clk 0:00:10.1]} 49...
Kf7 {[%clk 0:00:10.5]} 50. g5 {[%clk 0:00:10.3]} 50... Ke6 {[%clk 0:00:10.4]}
51. g6 {[%clk 0:00:09.7]} 51... Kf6 {[%clk 0:00:10.9]} 52. Rb6+ {[%clk
0:00:09.8]} 52... Kg7 {[%clk 0:00:09.7]} 53. Rb7+ {[%clk 0:00:10.1]} 53... Kf6
{[%clk 0:00:09.9]} 54. Kh6 {[%clk 0:00:10.2]} 54... Rg1 {[%clk 0:00:08.9]} 55.
Rb6+ {[%clk 0:00:10.4]} 55... Kf5 {[%clk 0:00:08.8]} 56. g7 {[%clk 0:00:08.8]}
56... Rg2 {[%clk 0:00:07.1]} 57. Rb5+ {[%clk 0:00:06.9]} 57... Kf6 {[%clk
0:00:06.2]} 58. Rb6+ {[%clk 0:00:05.2]} 58... Kf7 {[%clk 0:00:06.4]} 59. Rb7+
{[%clk 0:00:04.8]} 59... Kg8 {[%clk 0:00:05.9]} 60. Rb8+ {[%clk 0:00:04.1]}
60... Kf7 {[%clk 0:00:06.2]} 61. Rb7+ {[%clk 0:00:04]} 61... Kg8 {[%clk
0:00:06.2]} 62. h4 {[%clk 0:00:04]} 62... Rg4 {[%clk 0:00:03.1]} 63. h5 {[%clk
0:00:03.1]} 63... Rg6+ {[%clk 0:00:02.9]} 64. Kxg6 {[%clk 0:00:02.5]} 64...
b1=Q+ {[%clk 0:00:03.4]} 65. Rxb1 {[%clk 0:00:02.6]} 1/2-1/2